bitfinex-derivatives/quotes_BTCF0:USTF0_20250711
["timestamp","ask_amount","ask_price","bid_price","bid_amount"]
[1752206301784,0.59396758,116930.0,116920.0,0.38869829]
[1752206301992,0.59396758,116930.0,116920.0,0.003]
[1752206302194,0.59460758,116930.0,116920.0,0.003]
[1752206303692,0.59460758,116930.0,116920.0,0.002]
[1752206303892,0.59660758,116930.0,116920.0,0.001]
[1752206304502,0.2386561,116920.0,116910.0,0.97189829]
[1752206304694,0.3038561,116920.0,116910.0,0.97189829]
[1752206305186,0.3044961,116920.0,116910.0,0.949]
[1752206305693,0.3044961,116920.0,116910.0,0.96705286]
[1752206305892,0.3044961,116920.0,116910.0,1.25690424]
[1752206306096,0.3038561,116920.0,116910.0,1.25690424]
[1752206307299,0.3038561,116920.0,116910.0,1.25724424]
[1752206308101,0.3038561,116920.0,116910.0,0.37885286]
[1752206309401,0.3038561,116920.0,116910.0,0.66870424]
[1752206309597,0.2386561,116920.0,116910.0,0.84024504]
[1752206309802,0.2386561,116920.0,116910.0,0.90384504]
[1752206310198,0.2386561,116920.0,116910.0,0.56594333]
[1752206310391,0.2386561,116920.0,116910.0,0.40209115]
[1752206310596,0.2386561,116920.0,116910.0,0.66904424]
[1752206310597,0.3022561,116920.0,116910.0,0.66904424]
[1752206310800,0.3022561,116920.0,116910.0,0.84107494]
[1752206311000,0.3028961,116920.0,116910.0,0.86397323]
[1752206311201,0.3028961,116920.0,116910.0,1.45317323]
[1752206311498,0.3022561,116920.0,116910.0,1.28214253]
[1752206311691,0.3022561,116920.0,116910.0,1.28014253]
[1752206311898,0.3022561,116920.0,116910.0,1.45117323]
[1752206312093,0.3022561,116920.0,116910.0,0.69194253]
[1752206312293,0.3022561,116920.0,116910.0,1.28014253]
[1752206312910,0.3022561,116920.0,116910.0,1.45117323]
[1752206313300,0.3022561,116920.0,116910.0,1.45217323]
[1752206313506,0.3022561,116920.0,116910.0,1.28114253]
[1752206313706,0.3022561,116920.0,116910.0,1.28014253]
[1752206314305,0.3022561,116920.0,116910.0,1.25824424]
[1752206314605,0.3022561,116920.0,116910.0,1.25924424]
[1752206315303,0.3022561,116920.0,116910.0,0.96939286]
[1752206315506,0.3029361,116920.0,116910.0,1.25924424]
[1752206315705,0.3022561,116920.0,116910.0,1.25924424]
[1752206318208,0.3022561,116920.0,116910.0,1.28214253]
[1752206318801,0.3022561,116920.0,116910.0,1.25924424]
[1752206319099,0.3022561,116920.0,116910.0,1.28214253]
[1752206322916,0.3022561,116920.0,116910.0,1.28114253]
[1752206323113,0.3022561,116920.0,116910.0,1.28014253]
[1752206323405,0.3022561,116920.0,116910.0,1.28016785]
[1752206323807,0.3022561,116920.0,116910.0,1.28116785]
[1752206325413,0.3022561,116920.0,116910.0,1.45219855]
[1752206326206,0.3022561,116920.0,116910.0,1.48489855]
[1752206327108,0.2717561,116920.0,116910.0,1.48489855]
[1752206327313,0.2717561,116920.0,116910.0,1.51819855]
[1752206328017,0.2386561,116920.0,116910.0,1.51836855]
[1752206328612,0.2386561,116920.0,116910.0,1.52605462]
[1752206329014,0.2109661,116920.0,116910.0,1.52605462]
[1752206329209,0.1710161,116920.0,116910.0,1.52605462]
[1752206329614,0.1710161,116920.0,116910.0,1.51838168]
[1752206330615,0.1274535,116930.0,116910.0,1.51838168]
[1752206330922,0.298468,116930.0,116920.0,1.17712886]
[1752206331114,0.298468,116930.0,116920.0,0.88727748]
[1752206331310,0.298468,116930.0,116920.0,0.91021422]
[1752206331521,0.258518,116930.0,116920.0,0.91021422]
[1752206331721,0.298468,116930.0,116920.0,0.91021422]
[1752206332720,0.299108,116930.0,116920.0,0.91021422]
[1752206333614,0.299108,116930.0,116920.0,0.9438239]
[1752206334723,0.299108,116930.0,116920.0,0.91321422]
[1752206335624,0.299108,116930.0,116920.0,0.91021422]
[1752206335819,0.299108,116930.0,116920.0,0.91321422]
[1752206336225,0.299108,116930.0,116920.0,0.91521422]
[1752206337225,0.299108,116930.0,116920.0,1.2050656]
[1752206337425,0.298468,116930.0,116920.0,1.2050656]
[1752206337623,0.2157655,116930.0,116920.0,1.2050656]
[1752206337925,0.2533355,116930.0,116920.0,1.2050656]
[1752206338126,0.2533355,116930.0,116920.0,0.91521422]
[1752206338627,0.2157655,116930.0,116920.0,0.91521422]
[1752206338825,0.2157655,116930.0,116920.0,1.2050656]
[1752206339427,0.2533355,116930.0,116920.0,1.2050656]
[1752206339633,0.2533355,116930.0,116920.0,1.21273854]
[1752206340629,0.2533355,116930.0,116920.0,0.92288716]
[1752206341528,0.1730015,116930.0,116920.0,1.21273854]
[1752206344032,0.2105715,116930.0,116920.0,1.21273854]
[1752206344427,0.1730015,116930.0,116920.0,1.21273854]
[1752206346232,0.2105715,116930.0,116920.0,1.21273854]
[1752206349635,0.2105715,116930.0,116920.0,1.25865307]
[1752206350836,0.2105715,116930.0,116920.0,0.96880169]
[1752206351731,0.1730015,116930.0,116920.0,0.92288716]
[1752206352239,0.1730015,116930.0,116920.0,1.21273854]
[1752206352240,0.2105715,116930.0,116920.0,1.21273854]
[1752206352441,0.2105715,116930.0,116920.0,1.18212886]
[1752206354043,0.2105715,116930.0,116920.0,1.76992886]
[1752206354440,0.2105715,116930.0,116920.0,1.81584339]
[1752206356239,0.03957,116930.0,116920.0,1.81584339]
[1752206356441,0.2105715,116930.0,116920.0,1.81584339]
[1752206356938,0.2105715,116930.0,116920.0,1.88785958]
[1752206357444,0.03957,116930.0,116920.0,1.88785958]
[1752206358345,0.2105715,116930.0,116920.0,1.23614063]
[1752206358742,0.2105715,116930.0,116920.0,1.67061993]
[1752206359945,0.2105715,116930.0,116920.0,1.88778417]
[1752206360338,0.2424715,116930.0,116920.0,1.88778417]
[1752206361446,0.2424715,116930.0,116920.0,1.88770417]
[1752206361745,0.2424715,116930.0,116920.0,1.67046452]
[1752206365247,0.07147,116930.0,116920.0,1.67046452]
[1752206365943,0.2424715,116930.0,116920.0,1.67046452]
[1752206366147,0.2424715,116930.0,116920.0,1.62454999]
[1752206366444,0.2424715,116930.0,116920.0,1.6703949]
[1752206367546,0.07147,116930.0,116920.0,1.6703949]
[1752206368151,0.07147,116930.0,116920.0,1.62454999]
[1752206368345,0.07147,116930.0,116920.0,1.67040188]
[1752206369152,0.2424715,116930.0,116920.0,1.62454999]
[1752206369651,0.2424715,116930.0,116920.0,1.67040536]
[1752206370352,0.07147,116930.0,116920.0,1.67040536]
[1752206375655,0.07147,116930.0,116920.0,1.67032536]
[1752206375958,0.03957,116930.0,116920.0,1.67032536]
[1752206376149,0.03957,116930.0,116920.0,1.62446999]
[1752206377360,0.03957,116930.0,116920.0,1.67033023]
[1752206377959,0.03957,116930.0,116920.0,1.62446999]
[1752206378154,0.03957,116930.0,116920.0,1.67032938]
[1752206379558,0.03957,116930.0,116920.0,1.88756903]
[1752206379760,0.03957,116930.0,116920.0,1.84170964]
[1752206380362,0.03757,116930.0,116920.0,1.84170964]
[1752206380551,0.2156965,116970.0,116940.0,0.05985]
[1752206380757,0.3265941,116970.0,116960.0,1.0260869]
[1752206380958,0.3259541,116970.0,116960.0,1.04901227]
[1752206381156,0.241156,116970.0,116960.0,1.04901227]
[1752206381354,0.240476,116970.0,116960.0,1.04901227]
[1752206381660,0.240476,116970.0,116960.0,1.05665406]
[1752206381861,0.06058,116970.0,116960.0,1.05665406]
[1752206382063,0.06058,116970.0,116960.0,1.27489371]
[1752206382366,0.06058,116970.0,116960.0,1.30719371]
[1752206382661,0.269553,116970.0,116960.0,1.15845976]
[1752206382865,0.269553,116970.0,116960.0,1.30289242]
[1752206383052,0.269553,116970.0,116960.0,1.30489242]
[1752206383257,0.269553,116970.0,116960.0,1.03831644]
[1752206383657,0.267553,116970.0,116960.0,1.04031644]
[1752206383863,0.267553,116970.0,116960.0,1.04900418]
[1752206384162,0.298153,116970.0,116960.0,1.04900418]
[1752206384364,0.267553,116970.0,116960.0,1.01843702]
[1752206384564,0.267553,116970.0,116960.0,1.63899702]
[1752206385066,0.267553,116970.0,116960.0,1.63599702]
[1752206385263,0.09661,116970.0,116960.0,1.66656418]
[1752206385566,0.002,116970.0,116960.0,1.95602016]
[1752206385760,0.1234934,116990.0,116970.0,0.2563946]
[1752206385964,0.3619189,116990.0,116980.0,1.80443438]
[1752206386366,0.3191872,116990.0,116980.0,1.82729764]
[1752206386566,0.3821872,116990.0,116980.0,1.82729764]
[1752206386761,0.3831872,116990.0,116980.0,1.82729764]
[1752206387366,0.3831872,116990.0,116980.0,1.80443438]
[1752206387666,0.3831872,116990.0,116980.0,1.82729764]
[1752206388166,0.3404555,116990.0,116980.0,1.82729764]
[1752206388366,0.3424555,116990.0,116980.0,1.85949764]
[1752206388570,0.2869755,116990.0,116980.0,1.89049764]
[1752206388765,0.2546755,116990.0,116980.0,1.86763438]
[1752206389061,0.1966938,116990.0,116980.0,1.30293764]
[1752206389269,0.52417978,116990.0,116980.0,1.334]
[1752206389562,0.195723,116970.0,116960.0,1.12357992]
[1752206389761,0.233753,116970.0,116960.0,0.4827095]
[1752206389962,0.293953,116970.0,116960.0,0.6536671]
[1752206390169,0.293953,116970.0,116960.0,0.94312308]
[1752206390355,0.293953,116970.0,116960.0,1.56545308]
[1752206390560,0.293953,116970.0,116960.0,0.97801308]
[1752206390767,0.293953,116970.0,116960.0,1.51251693]
[1752206391157,0.293953,116970.0,116960.0,0.46466335]
[1752206391364,0.58340898,116970.0,116960.0,1.02714335]
[1752206391864,0.293953,116970.0,116960.0,1.02710335]
[1752206392263,0.293953,116970.0,116960.0,1.19806095]
[1752206392465,0.293953,116970.0,116960.0,1.02710335]
[1752206393367,0.295953,116970.0,116960.0,1.02710335]
[1752206393865,0.296953,116970.0,116960.0,1.02710335]
[1752206394161,0.75740098,116970.0,116960.0,0.36250991]
[1752206395869,0.75804098,116970.0,116960.0,0.36250991]
[1752206396268,0.297593,116970.0,116960.0,0.36250991]
[1752206397368,0.296593,116970.0,116960.0,0.36250991]
[1752206397570,0.884993,116970.0,116960.0,0.36250991]
[1752206397765,0.884993,116970.0,116960.0,0.38722991]
[1752206397974,0.882993,116970.0,116960.0,0.38722991]
[1752206398170,0.884993,116970.0,116960.0,0.38722991]
[1752206398782,0.884993,116970.0,116960.0,0.45426376]
[1752206399780,0.297593,116970.0,116960.0,0.45426376]
[1752206400585,0.58704898,116970.0,116960.0,0.45426376]
[1752206401984,0.58504898,116970.0,116960.0,0.45426376]
[1752206402279,0.58704898,116970.0,116960.0,0.45426376]
[1752206402584,0.297593,116970.0,116960.0,0.45426376]
[1752206403480,0.58704898,116970.0,116960.0,0.36250991]
[1752206404084,0.75804098,116970.0,116960.0,0.36250991]
[1752206404387,0.468585,116970.0,116960.0,0.36250991]
[1752206404687,0.75804098,116970.0,116960.0,0.36250991]
[1752206405982,0.1709573,116960.0,116950.0,0.3608]
[1752206406175,1.41736926,116960.0,116950.0,0.35523]
[1752206406379,1.83837726,116960.0,116950.0,0.04186613]
[1752206406576,0.1709719,116950.0,116940.0,0.3608]
[1752206406776,0.66405188,116950.0,116940.0,0.3608]
[1752206406981,0.91405188,116950.0,116940.0,0.3608]
[1752206407685,0.91469188,116950.0,116940.0,0.3608]
[1752206407889,1.50429188,116950.0,116940.0,0.3608]
[1752206408276,1.2148359,116950.0,116940.0,0.3608]
[1752206408578,1.50429188,116950.0,116940.0,0.3608]
[1752206409086,1.2148359,116950.0,116940.0,0.3608]
[1752206409283,1.50829188,116950.0,116940.0,0.3608]
[1752206409688,1.54299188,116950.0,116940.0,0.3608]
[1752206409892,1.551547,116950.0,116940.0,0.3608]
[1752206410407,0.1710012,116930.0,116920.0,6e-08]
[1752206410688,0.1710157,116920.0,116910.0,0.03854]
[1752206410986,0.88747168,116920.0,116910.0,0.03854]
[1752206411186,0.196295,116900.0,116890.0,0.15525527]
[1752206411485,0.87453098,116900.0,116890.0,0.12308811]
[1752206411792,1.26897098,116900.0,116890.0,0.12308811]
[1752206412178,1.26897098,116900.0,116890.0,0.58360369]
[1752206412179,0.918535,116900.0,116890.0,0.58360369]
[1752206412384,0.557735,116900.0,116890.0,0.44414409]
[1752206412785,0.557735,116900.0,116890.0,0.44814409]
[1752206413188,0.557735,116900.0,116890.0,0.48668409]
[1752206413389,0.559735,116900.0,116890.0,0.48268409]
[1752206413590,0.559735,116900.0,116890.0,0.36428761]
[1752206413794,0.559735,116900.0,116890.0,0.48268409]
[1752206413986,0.561735,116900.0,116890.0,0.48268409]
[1752206414388,0.561735,116900.0,116890.0,0.19322811]
[1752206414781,1.21199098,116900.0,116890.0,0.19322811]
[1752206414990,1.23797098,116900.0,116890.0,0.19422811]
[1752206415187,2.107735,116900.0,116890.0,0.19422811]
[1752206415386,2.42317098,116900.0,116890.0,0.19422811]
[1752206415688,0.1963096,116890.0,116880.0,0.06497108]
[1752206415888,0.90644558,116890.0,116880.0,0.06497108]
[1752206416088,0.90708558,116890.0,116880.0,0.06497108]
[1752206416282,0.90708558,116890.0,116880.0,0.00171108]
[1752206416491,0.90708558,116890.0,116880.0,0.06497108]
[1752206416696,0.90708558,116890.0,116880.0,0.09617108]
[1752206417582,0.90708558,116890.0,116880.0,0.07145108]
[1752206417787,0.90708558,116890.0,116880.0,0.03291108]
[1752206418089,0.93888558,116890.0,116880.0,0.03291108]
[1752206419392,0.2243189,116870.0,116860.0,0.06326]
[1752206419583,2.42333488,116870.0,116860.0,0.06944]
[1752206419785,2.45487488,116870.0,116860.0,0.09416]
[1752206420087,1.5124989,116870.0,116860.0,0.56317811]
[1752206420394,1.5124989,116870.0,116860.0,0.42457461]
[1752206420788,1.5124989,116870.0,116860.0,0.59567811]
[1752206420989,0.9185789,116870.0,116860.0,0.59567811]
[1752206421191,0.5577789,116870.0,116860.0,0.59967811]
[1752206421692,0.5577789,116870.0,116860.0,0.60167811]
[1752206421898,0.5577789,116870.0,116860.0,0.31222213]
[1752206422194,0.5577789,116870.0,116860.0,0.60167811]
[1752206422495,0.5601989,116870.0,116860.0,0.60167811]
[1752206422997,0.5601989,116870.0,116860.0,0.31222213]
[1752206423190,0.5325289,116870.0,116860.0,0.60167811]
[1752206423995,0.5325289,116870.0,116860.0,0.31222213]
[1752206424493,0.5325289,116870.0,116860.0,0.60167811]
[1752206424695,0.1717289,116870.0,116860.0,0.60167811]
[1752206424895,0.2566271,116880.0,116870.0,0.2444386]
[1752206425094,0.6174271,116880.0,116870.0,0.59659458]
[1752206425599,0.6180671,116880.0,116870.0,0.59659458]
[1752206425895,0.00064,116880.0,116870.0,0.95739458]
[1752206426092,0.171074,116880.0,116870.0,1.04081528]
[1752206426294,0.171074,116880.0,116870.0,1.08570528]
[1752206426496,0.171074,116880.0,116870.0,0.7962493]
[1752206426691,0.559544,116880.0,116870.0,0.59659458]
[1752206427095,0.559544,116880.0,116870.0,0.3071386]
[1752206427292,0.560224,116880.0,116870.0,0.59859458]
[1752206427788,0.199424,116880.0,116870.0,0.3091386]
[1752206427992,0.198744,116880.0,116870.0,0.59859458]
[1752206428198,0.559544,116880.0,116870.0,0.59859458]
[1752206428599,0.560224,116880.0,116870.0,0.59859458]
[1752206428892,0.599004,116880.0,116870.0,0.59859468]
[1752206429194,0.88845998,116880.0,116870.0,0.13805]
[1752206429386,0.88845998,116880.0,116870.0,0.10625]
[1752206429589,0.91965998,116880.0,116870.0,0.0329]
[1752206430097,0.630204,116880.0,116870.0,0.07535]
[1752206430292,0.630204,116880.0,116870.0,0.10825]
[1752206430691,0.91965998,116880.0,116870.0,0.10825]
[1752206432195,0.599004,116880.0,116870.0,0.56879438]
[1752206432399,0.560224,116880.0,116870.0,0.60019438]
[1752206432896,0.199424,116880.0,116870.0,0.60019438]
[1752206433100,0.198744,116880.0,116870.0,0.60019438]
[1752206433299,0.171074,116880.0,116870.0,0.60019438]
[1752206437397,0.171074,116880.0,116870.0,0.59919438]
[1752206438707,0.598324,116880.0,116870.0,0.42810598]
[1752206439007,0.598324,116880.0,116870.0,0.59919448]
[1752206439397,0.598324,116880.0,116870.0,0.42810598]
[1752206439595,0.598964,116880.0,116870.0,0.59919448]
[1752206441106,0.598964,116880.0,116870.0,0.13865]
[1752206441305,0.630864,116880.0,116870.0,0.3097385]
[1752206441813,0.560184,116880.0,116870.0,0.59919448]
[1752206443305,0.88841998,116880.0,116870.0,0.10725]
[1752206443502,0.92031998,116880.0,116870.0,0.10725]
[1752206443900,0.560184,116880.0,116870.0,0.56779448]
[1752206444106,0.560184,116880.0,116870.0,0.59839448]
[1752206444508,0.560184,116880.0,116870.0,0.13685]
[1752206444700,0.1987585,116870.0,116860.0,0.07335]
[1752206444904,0.88779448,116870.0,116860.0,0.10465]
[1752206445105,0.95117448,116870.0,116860.0,0.10465]
[1752206445306,1.2562785,116870.0,116860.0,0.10465]
[1752206446002,1.2562785,116870.0,116860.0,0.2757531]
[1752206446309,1.2248785,116870.0,116860.0,0.10465]
[1752206447105,1.2258785,116870.0,116860.0,0.56520908]
[1752206447305,1.2268785,116870.0,116860.0,0.56520908]
[1752206447706,1.2268785,116870.0,116860.0,0.59660908]
[1752206447907,1.2268785,116870.0,116860.0,0.13605]
[1752206448108,1.2268785,116870.0,116860.0,0.42550598]
[1752206448303,1.2268785,116870.0,116860.0,0.43425977]
[1752206449713,1.2258785,116870.0,116860.0,0.43425977]
[1752206450013,1.2248785,116870.0,116860.0,0.43525977]
[1752206451714,1.2248785,116870.0,116860.0,0.43425977]
[1752206451912,1.2258785,116870.0,116860.0,0.43425977]
[1752206452403,1.2268785,116870.0,116860.0,0.43425977]
[1752206454415,1.2268785,116870.0,116860.0,0.39410598]
[1752206454616,1.54633448,116870.0,116860.0,0.04489]
[1752206454916,0.2380431,116860.0,116850.0,0.14054403]
[1752206455110,0.95089908,116860.0,116850.0,0.14054403]
[1752206455309,0.95153908,116860.0,116850.0,0.06908403]
[1752206455509,0.1711178,116850.0,116840.0,0.74847276]
[1752206455710,0.6314578,116850.0,116840.0,0.15471276]
[1752206455906,0.1711324,116840.0,116830.0,0.09006077]
[1752206456110,0.95362838,116840.0,116830.0,0.04421003]
[1752206456312,0.95426838,116840.0,116830.0,0.04421003]
[1752206456611,0.02973,116820.0,116810.0,0.42476074]
[1752206456812,0.2008917,116820.0,116810.0,0.63496838]
[1752206457013,0.2008917,116820.0,116810.0,0.66786838]
[1752206457214,0.2008917,116820.0,116810.0,0.62201764]
[1752206457814,0.5616917,116820.0,116810.0,0.62201764]
[1752206458014,0.5616917,116820.0,116810.0,0.62701764]
[1752206458218,0.5623317,116820.0,116810.0,0.63101764]
[1752206459017,0.5623317,116820.0,116810.0,0.34156166]
[1752206459512,0.5623317,116820.0,116810.0,0.63101764]
[1752206459817,0.5623317,116820.0,116810.0,0.69968983]
[1752206460017,0.2015317,116820.0,116810.0,0.69968983]
[1752206460317,0.1711617,116820.0,116810.0,0.77103385]
[1752206460520,0.1711617,116820.0,116810.0,0.69968983]
[1752206462116,0.2567365,116830.0,116820.0,0.1711616]
[1752206462310,0.1717978,116830.0,116820.0,1.19035758]
[1752206462516,0.1711578,116830.0,116820.0,1.19035758]
[1752206463212,0.1711578,116830.0,116820.0,1.19435758]
[1752206463413,0.1711578,116830.0,116820.0,1.19735758]
[1752206464317,0.5319578,116830.0,116820.0,1.19735758]
[1752206464721,0.1711578,116830.0,116820.0,1.19735758]
[1752206465321,0.2008878,116830.0,116820.0,0.60387758]
[1752206465515,0.2008878,116830.0,116820.0,1.19723758]
[1752206465825,0.5616878,116830.0,116820.0,1.19723758]
[1752206466024,0.5991478,116830.0,116820.0,0.14326]
[1752206466219,0.92144378,116830.0,116820.0,0.7365]
[1752206466622,0.92144378,116830.0,116820.0,0.7037]
[1752206466822,0.92144378,116830.0,116820.0,0.11046]
[1752206467123,0.6319878,116830.0,116820.0,0.11046]
[1752206467320,0.92144378,116830.0,116820.0,0.11046]
[1752206468221,0.95144378,116830.0,116820.0,0.07846]
[1752206468829,2.18830365,116830.0,116820.0,0.07846]
[1752206470324,1.8481078,116830.0,116820.0,0.07846]
[1752206471228,1.8481078,116830.0,116820.0,0.11016]
[1752206472919,1.8481078,116830.0,116820.0,0.2813216]
[1752206473119,1.8481078,116830.0,116820.0,0.11016]
[1752206473928,2.18830365,116830.0,116820.0,0.007]
[1752206474929,1.8481078,116830.0,116820.0,0.05121]
[1752206475223,1.8481078,116830.0,116820.0,0.2223716]
[1752206475428,1.8481078,116830.0,116820.0,0.2193716]
[1752206475629,1.8481078,116830.0,116820.0,0.2203716]
[1752206475828,1.8181078,116830.0,116820.0,0.2782216]
[1752206476631,1.8181078,116830.0,116820.0,0.10706]
[1752206476932,1.8181078,116830.0,116820.0,0.10306]
[1752206477132,1.8181078,116830.0,116820.0,0.10406]
[1752206478836,1.7484478,116830.0,116820.0,0.61541745]
[1752206479132,1.7484478,116830.0,116820.0,0.6682988]
[1752206479324,1.7859078,116830.0,116820.0,0.3052216]
[1752206479931,1.7859078,116830.0,116820.0,0.13406]
[1752206480138,1.8164078,116830.0,116820.0,0.13406]
[1752206480833,1.8164078,116830.0,116820.0,0.10406]
[1752206481236,2.15660365,116830.0,116820.0,0.04621]
[1752206481428,2.18830365,116830.0,116820.0,0.04621]
[1752206481838,1.8481078,116830.0,116820.0,0.04621]
[1752206482038,1.8481078,116830.0,116820.0,0.002]
[1752206482937,2.18830365,116830.0,116820.0,0.002]
[1752206485340,2.18830365,116830.0,116820.0,1e-07]
[1752206485543,2.15084365,116830.0,116820.0,0.01270023]
[1752206485846,2.15084365,116830.0,116820.0,0.01270114]
[1752206486246,2.18706365,116830.0,116820.0,0.01270114]
[1752206487842,1.8468678,116830.0,116820.0,0.01270114]
[1752206488043,2.18706365,116830.0,116820.0,0.01270114]
[1752206490840,0.2346363,116810.0,116800.0,0.19171641]
[1752206491045,2.42957427,116810.0,116800.0,0.12997361]
[1752206491243,2.46237427,116810.0,116800.0,0.10043361]
[1752206491450,2.49467427,116810.0,116800.0,0.10043361]
[1752206491850,2.49467427,116810.0,116800.0,0.07755226]
[1752206492148,2.49467427,116810.0,116800.0,0.03621226]
[1752206492346,2.49467427,116810.0,116800.0,0.07389191]
[1752206492548,2.49467427,116810.0,116800.0,0.00871226]
[1752206493043,2.1719963,116810.0,116800.0,0.42291047]
[1752206493344,2.1398363,116810.0,116800.0,0.31568316]
[1752206493543,2.1391963,116810.0,116800.0,0.14449226]
[1752206496447,2.1398363,116810.0,116800.0,0.14449226]
[1752206496655,2.1398363,116810.0,116800.0,0.21384058]
[1752206497550,2.1398363,116810.0,116800.0,0.38503148]
[1752206497952,2.1388363,116810.0,116800.0,0.38503148]
[1752206498151,0.5598563,116810.0,116800.0,0.72534969]
[1752206499149,0.1718163,116810.0,116800.0,0.72534969]
[1752206499349,0.1711763,116810.0,116800.0,0.72534969]
[1752206500349,0.1711763,116810.0,116800.0,0.89657369]
[1752206500549,0.171172,116820.0,116810.0,0.2450563]
[1752206500854,0.171812,116820.0,116810.0,1.60089451]
[1752206501052,0.171172,116820.0,116810.0,1.60089451]
[1752206501246,0.171172,116820.0,116810.0,1.77210251]
[1752206502054,0.2567334,116830.0,116820.0,0.2450416]
[1752206502250,0.2567334,116830.0,116820.0,0.61635981]
[1752206503850,0.2577334,116830.0,116820.0,0.2760416]
[1752206504050,0.2577334,116830.0,116820.0,0.61635981]
[1752206505155,0.2577334,116830.0,116820.0,0.64905981]
[1752206505757,0.2849734,116830.0,116820.0,1.23965981]
[1752206505955,0.2849734,116830.0,116820.0,1.27030261]
[1752206506357,0.2421845,116830.0,116820.0,1.27030261]
[1752206506557,0.2149445,116830.0,116820.0,1.27030261]
[1752206506752,0.2139445,116830.0,116820.0,1.63110261]
[1752206506956,0.2139445,116830.0,116820.0,1.63510261]
[1752206507157,0.171156,116830.0,116820.0,1.63510261]
[1752206507860,0.171156,116830.0,116820.0,1.63710261]
[1752206508259,0.171156,116830.0,116820.0,1.63310261]
[1752206508457,0.171156,116830.0,116820.0,1.63510261]
[1752206508761,0.171156,116830.0,116820.0,1.04450261]
[1752206509060,0.171156,116830.0,116820.0,1.63710261]
[1752206509759,0.198396,116830.0,116820.0,0.3147416]
[1752206509959,0.595416,116830.0,116820.0,0.14358]
[1752206510160,0.626256,116830.0,116820.0,0.2820416]
[1752206510359,0.657856,116830.0,116820.0,0.2820416]
[1752206510964,0.657856,116830.0,116820.0,0.2810416]
[1752206511165,0.657856,116830.0,116820.0,0.10988]
[1752206511353,0.657856,116830.0,116820.0,0.2810416]
[1752206511557,0.657856,116830.0,116820.0,0.2790416]
[1752206511764,0.657856,116830.0,116820.0,0.2780416]
[1752206512153,0.657856,116830.0,116820.0,0.10688]
[1752206513160,0.657856,116830.0,116820.0,0.2780416]
[1752206513559,0.657856,116830.0,116820.0,0.2770416]
[1752206513865,0.657856,116830.0,116820.0,0.56730128]
[1752206514457,0.297056,116830.0,116820.0,0.56730128]
[1752206514657,0.199036,116830.0,116820.0,0.56730128]
[1752206514858,0.198396,116830.0,116820.0,0.95850128]
[1752206516264,0.198396,116830.0,116820.0,0.95950128]
[1752206516961,0.198396,116830.0,116820.0,0.59870128]
[1752206517266,0.234206,116830.0,116820.0,0.59970128]
[1752206517765,0.234206,116830.0,116820.0,0.56930128]
[1752206517967,0.267106,116830.0,116820.0,0.56930128]
[1752206518162,0.298506,116830.0,116820.0,0.56930128]
[1752206518363,0.298506,116830.0,116820.0,0.56730128]
[1752206518565,0.298506,116830.0,116820.0,0.56930128]
[1752206518764,0.299146,116830.0,116820.0,0.56930128]
[1752206518964,0.299146,116830.0,116820.0,0.56830128]
[1752206519868,0.299146,116830.0,116820.0,0.56730128]
[1752206520764,0.231936,116830.0,116820.0,0.56730128]
[1752206520964,0.198396,116830.0,116820.0,0.56730128]
[1752206522566,0.198396,116830.0,116820.0,0.56830128]
[1752206522959,0.198396,116830.0,116820.0,0.93010128]
[1752206523866,0.171156,116830.0,116820.0,0.93010128]
[1752206524066,0.200406,116830.0,116820.0,0.56930128]
[1752206524367,0.235656,116830.0,116820.0,1.12786128]
[1752206524570,0.298956,116830.0,116820.0,1.12786128]
[1752206525064,0.298956,116830.0,116820.0,0.66644]
[1752206525065,0.299596,116830.0,116820.0,0.66644]
[1752206525267,0.299596,116830.0,116820.0,0.2480416]
[1752206525566,0.299596,116830.0,116820.0,0.2470416]
[1752206525966,0.299596,116830.0,116820.0,1.12586128]
[1752206528572,0.299596,116830.0,116820.0,1.15650408]
[1752206529765,0.264346,116830.0,116820.0,1.15650408]
[1752206529970,0.232206,116830.0,116820.0,1.51730408]
[1752206530168,0.232206,116830.0,116820.0,1.18700408]
[1752206530374,0.232206,116830.0,116820.0,1.21920408]
[1752206530575,0.200406,116830.0,116820.0,1.21920408]
[1752206530977,0.171156,116830.0,116820.0,1.21920408]
[1752206531676,0.171156,116830.0,116820.0,1.22020408]
[1752206531980,0.171156,116830.0,116820.0,1.22120408]
[1752206533078,0.171156,116830.0,116820.0,1.58200408]
[1752206536180,0.171156,116830.0,116820.0,1.22120408]
[1752206536779,0.200406,116830.0,116820.0,1.58200408]
[1752206537381,0.200406,116830.0,116820.0,1.22120408]
[1752206537579,0.233306,116830.0,116820.0,1.22120408]
[1752206538980,0.233306,116830.0,116820.0,0.63164408]
[1752206539474,0.233306,116830.0,116820.0,1.22120408]
[1752206541279,0.233306,116830.0,116820.0,1.22020408]
[1752206541479,0.200406,116830.0,116820.0,1.21920408]
[1752206544485,0.200406,116830.0,116820.0,1.22020408]
[1752206547289,0.200406,116830.0,116820.0,1.22120408]
[1752206548086,0.171156,116830.0,116820.0,1.22120408]
[1752206548479,0.4517336,116850.0,116830.0,0.02868]
[1752206548685,0.1737661,116850.0,116840.0,1.41014166]
[1752206548886,0.002,116850.0,116840.0,1.77094166]
[1752206549087,0.1731177,116850.0,116840.0,1.83384166]
[1752206549288,0.1731177,116850.0,116840.0,1.57422478]
[1752206549783,0.88701738,116850.0,116840.0,0.06897]
[1752206549984,0.6268077,116850.0,116840.0,0.2707451]
[1752206550190,0.6278077,116850.0,116840.0,0.53036198]
[1752206550391,0.2670077,116850.0,116840.0,0.35922968]
[1752206550590,0.6614577,116850.0,116840.0,0.35922968]
[1752206550792,0.6604577,116850.0,116840.0,0.35922968]
[1752206551092,0.3006577,116850.0,116840.0,0.94874968]
[1752206551293,0.3006577,116850.0,116840.0,0.65849]
[1752206551294,0.6624577,116850.0,116840.0,0.65849]
[1752206551797,0.6624577,116850.0,116840.0,0.06897]
[1752206551991,0.6630977,116850.0,116840.0,0.65845]
[1752206552295,0.6620977,116850.0,116840.0,0.65845]
[1752206552488,0.6620977,116850.0,116840.0,0.65945]
[1752206552887,0.6630977,116850.0,116840.0,0.65845]
[1752206553183,0.6630977,116850.0,116840.0,0.66706823]
[1752206554193,0.6620977,116850.0,116840.0,0.66706823]
[1752206554393,0.6610977,116850.0,116840.0,0.66706823]
[1752206554594,0.6610977,116850.0,116840.0,0.66806823]
[1752206556791,0.95135738,116850.0,116840.0,0.06997]
[1752206558093,0.95235738,116850.0,116840.0,0.06897]
[1752206558294,0.95335738,116850.0,116840.0,0.06897]
[1752206559494,0.6630977,116850.0,116840.0,0.06897]
[1752206559697,0.6630977,116850.0,116840.0,0.2401022]
[1752206560094,0.6630977,116850.0,116840.0,0.06897]
[1752206561295,0.6620977,116850.0,116840.0,0.06897]